Workbook

Sheet MSU
B1: Mikael Harju | E1: 31.7.2002 Miehikkälä
B2: SUPERPESIS | E2: Runkosarja | I2: Kärkilyönnit (KL), pesänvälit | P2: Runkosarja TOP-30 | U2: Ylempi loppusarja | AB2: Ylempi loppusarja TOP-10 | AG2: Play off, voitot, voittoprosentti | AL2: Arvo-ottelut | AO2: Mitalit
B3: Vuosi | C3: Sija | D3: Seura | E3: OTT | F3: KUN | G3: LÖI | H3: TOI | I3: KL | J3: 0 > 1 | K3: 1 > 2 | L3: 2 > 3 | M3: 3 > k | N3: KL-% | P3: LÖI | Q3: TOI | R3: L+T | S3: KL | U3: OTT | V3: KUN | W3: LÖI | X3: TOI | Y3: KL | Z3: KL-% | AB3: LÖI | AC3: TOI | AD3: L+T | AE3: KL | AG3: Puolivälierät | AH3: Välierät | AI3: Pronssi | AJ3: Finaalit | AL3: IL | AM3: LL | AN3: hSM | AO3: K | AP3: H | AQ3: P
B4: 2021 | C4: 4. | D4: LMV | F4: suomensarja
B5: 2021 | C5: 15. | D5: HP | E5: 1 | F5: 0 | G5: 0 | H5: 0 | I5: 3 | J5: 3 | K5: 0 | L5: 0 | M5: 0 | N5: 75.0 % | O5: 4
B6: 2022 | C6: 3. | D6: HP 2 | F6: suomensarja
B7: 2023 | C7: 5. | D7: HP 2 | F7: suomensarja
B8: 2023 | C8: 1. | D8: HP | F8: ykköspesis
B9: Yhteensä | E9: =SUM(E4:E8) -> 1 | F9: 0 | G9: 0 | H9: 0 | I9: 3 | J9: 3 | K9: 0 | L9: 0 | M9: 0 | N9: =PRODUCT(I9/O9) -> 75.0 % | O9: =SUM(O3:O8) -> 4 | P9: 0-0-0 | Q9: 0-0-0 | R9: 0-0-0 | S9: 0-0-0 | U9: 0 | V9: 0 | W9: 0 | X9: 0 | Y9: 0 | Z9: =PRODUCT(N15) -> 0.0 % | AB9: 0-0-0 | AC9: 0-0-0 | AD9: 0-0-0 | AE9: 0-0-0 | AG9: 0/0 | AH9: 0/0 | AI9: 0/0 | AJ9: 0/0 | AL9: =SUM(AL4:AL8) -> 0 | AM9: 0 | AN9: 0 | AO9: 0 | AP9: 0 | AQ9: 0
AG10: 0.0 % | AH10: 0.0 % | AI10: 0.0 % | AJ10: 0.0 %
B11: Pesispörssi | D11: =SUM(F9:H9)+((I9-F9-G9)/3)+(E9/3)+(AL9*25)+(AM9*25)+(AN9*10)+(AO9*25)+(AP9*20)+(AQ9*15) -> 1.3
B13: URA SUPERISSA | E13: OTT | F13: KUN | G13: LÖI | H13: TOI | I13: KL | K13: ka/L | L13: ka/T | M13: ka/KL | N13: KL-% | P13: ENSIMMÄISET RUNKOSARJASSA | AG13: ENSIMMÄISET PUDOTUSPELEISSÄ | AL13: YLEISÖ
B14: Runkosarja | E14: =PRODUCT(E9) -> 1 | F14: =PRODUCT(F9) -> 0 | G14: =PRODUCT(G9) -> 0 | H14: =PRODUCT(H9) -> 0 | I14: =PRODUCT(I9) -> 3 | K14: =PRODUCT((F14+G14)/E14) -> 0.00 | L14: =PRODUCT(H14/E14) -> 0.00 | M14: =PRODUCT(I14/E14) -> 3.00 | N14: =PRODUCT(N9) -> 75.0 % | O14: =PRODUCT(O9) -> 4 | P14: Ottelu | R14: 06.07. 2021 HP - JoMa 0-1 (1-1, 1-2) | Z14: 1. ottelu | AC14: 18 v 11 kk 7 pv | AG14: Ottelu
B15: Ylempi loppusarja | P15: Lyöty | AG15: Lyöty
B16: Alempi loppusarja | P16: Tuotu | AG16: Tuotu
B17: KAIKKI | E17: =SUM(E14:E16) -> 1 | F17: =SUM(F14:F16) -> 0 | G17: =SUM(G14:G16) -> 0 | H17: =SUM(H14:H16) -> 0 | I17: =SUM(I14:I16) -> 3 | K17: =PRODUCT((F17+G17)/E17) -> 0.00 | L17: =PRODUCT(H17/E17) -> 0.00 | M17: =PRODUCT(I17/E17) -> 3.00 | N17: =PRODUCT(I17/O17) -> 75.0 % | O17: =SUM(O14:O16) -> 4 | P17: Kunnari | AG17: Kunnari
O18: =SUM(O15:O17) -> 4
B19: Seurat | D19: HP = Haminan Palloilijat (1928), kasvattajaseura
D20: LMV = Lahden Mailaveikot (1929)

Sheet MYP, MSS
B1: Mikael Harju | E1: 31.7.2002 Miehikkälä
B2: YKKÖSPESIS | E2: Runkosarja | L2: Runkosarja TOP-10 | Q2: Jatkosarjat | X2: SUOMENSARJA | AA2: Runkosarja | AH2: Runkosarja TOP-10 | AM2: Jatkosarjat
B3: Vuosi | C3: Sija | D3: Seura | E3: OTT | F3: KUN | G3: LÖI | H3: TOI | I3: KL | J3: KL-% | L3: LÖI | M3: TOI | N3: L+T | O3: KL | Q3: OTT | R3: KUN | S3: LÖI | T3: TOI | U3: KL | V3: KL-% | X3: Vuosi | Y3: Sija | Z3: Seura | AA3: OTT | AB3: KUN | AC3: LÖI | AD3: TOI | AE3: KL | AF3: KL-% | AH3: LÖI | AI3: TOI | AJ3: L+T | AK3: KL | AM3: OTT | AN3: KUN | AO3: LÖI | AP3: TOI | AQ3: KL | AR3: KL-%
X4: 2021 | Y4: 4. | Z4: LMV | AA4: 11 | AB4: 0 | AC4: 1 | AD4: 19 | AE4: 52 | AF4: 68.4 % | AG4: 76 | AM4: 2 | AN4: 0 | AO4: 0 | AP4: 2 | AQ4: 8 | AR4: 72.7 % | AS4: 11
X5: 2022 | Y5: 3. | Z5: HP 2 | AA5: 11 | AB5: 0 | AC5: 1 | AD5: 16 | AE5: 44 | AF5: 54.3 % | AG5: 81 | AM5: 3 | AN5: 0 | AO5: 0 | AP5: 3 | AQ5: 8 | AR5: 47.1 % | AS5: 17
B6: 2023 | C6: 1. | D6: HP | E6: 2 | F6: 0 | G6: 1 | H6: 2 | I6: 3 | J6: 60.0 % | K6: 5 | X6: 2023 | Y6: 5. | Z6: HP 2 | AA6: 13 | AB6: 0 | AC6: 2 | AD6: 23 | AE6: 62 | AF6: 68.9 % | AG6: 90 | AI6: 5. | AK6: 7.
B7: YHTEENSÄ | E7: =SUM(E4:E6) -> 2 | F7: =SUM(F4:F6) -> 0 | G7: =SUM(G4:G6) -> 1 | H7: =SUM(H4:H6) -> 2 | I7: =SUM(I4:I6) -> 3 | J7: =PRODUCT(I7/K7) -> 60.0 % | K7: =SUM(K6:K6) -> 5 | Q7: =SUM(Q4:Q6) -> 0 | R7: =SUM(R4:R6) -> 0 | S7: =SUM(S4:S6) -> 0 | T7: =SUM(T4:T6) -> 0 | U7: =SUM(U4:U6) -> 0 | V7: 0.0 % | W7: =SUM(W6:W6) -> 0 | X7: YHTEENSÄ | AA7: =SUM(AA4:AA6) -> 35 | AB7: =SUM(AB4:AB6) -> 0 | AC7: =SUM(AC4:AC6) -> 4 | AD7: =SUM(AD4:AD6) -> 58 | AE7: =SUM(AE4:AE6) -> 158 | AF7: =PRODUCT(AE7/AG7) -> 64.0 % | AG7: =SUM(AG4:AG6) -> 247 | AM7: =SUM(AM4:AM6) -> 5 | AN7: =SUM(AN4:AN6) -> 0 | AO7: =SUM(AO4:AO6) -> 0 | AP7: =SUM(AP4:AP6) -> 5 | AQ7: =SUM(AQ4:AQ6) -> 16 | AR7: =PRODUCT(AQ7/AS7) -> 57.1 % | AS7: =SUM(AS4:AS6) -> 28
B9: KAIKKI OTTELUT | E9: OTT | F9: KUN | G9: LÖI | H9: TOI | I9: KL | J9: KL-% | L9: ka/L | M9: ka/T | N9: ka/l+t | O9: ka/kl | R9: Seurat | T9: HP = Haminan Palloilijat (1928), kasvattajaseura
B10: SUPERPESIS | E10: 1 | F10: 0 | G10: 0 | H10: 0 | I10: 3 | J10: 75.0 % | K10: =PRODUCT(I10/J10) -> 4 | L10: =PRODUCT((F10+G10)/E10) -> 0.00 | M10: =PRODUCT(H10/E10) -> 0.00 | N10: =PRODUCT((F10+G10+H10)/E10) -> 0.00 | O10: =PRODUCT(I10/E10) -> 3.00 | T10: LMV = Lahden Mailaveikot (1929)
B11: YKKÖSPESIS | E11: =PRODUCT(E7+Q7) -> 2 | F11: =PRODUCT(F7+R7) -> 0 | G11: =PRODUCT(G7+S7) -> 1 | H11: =PRODUCT(H7+T7) -> 2 | I11: =PRODUCT(I7+U7) -> 3 | J11: =PRODUCT(I11/K11) -> 60.0 % | K11: =PRODUCT(K7+W7) -> 5 | L11: =PRODUCT((F11+G11)/E11) -> 0.50 | M11: =PRODUCT(H11/E11) -> 1.00 | N11: =PRODUCT((F11+G11+H11)/E11) -> 1.50 | O11: =PRODUCT(I11/E11) -> 1.50
B12: SUOMENSARJA | E12: =PRODUCT(AA7+AM7) -> 40 | F12: =PRODUCT(AB7+AN7) -> 0 | G12: =PRODUCT(AC7+AO7) -> 4 | H12: =PRODUCT(AD7+AP7) -> 63 | I12: =PRODUCT(AE7+AQ7) -> 174 | J12: =PRODUCT(I12/K12) -> 63.3 % | K12: =PRODUCT(AG7+AS7) -> 275 | L12: =PRODUCT((F12+G12)/E12) -> 0.10 | M12: =PRODUCT(H12/E12) -> 1.58 | N12: =PRODUCT((F12+G12+H12)/E12) -> 1.68 | O12: =PRODUCT(I12/E12) -> 4.35
B13: YHTEENSÄ | E13: =SUM(E10:E12) -> 43 | F13: =SUM(F10:F12) -> 0 | G13: 5 | H13: 65 | I13: 180 | J13: =PRODUCT(I13/K13) -> 63.4 % | K13: =SUM(K10:K12) -> 284 | L13: =PRODUCT((F13+G13)/E13) -> 0.12 | M13: =PRODUCT(H13/E13) -> 1.51 | N13: =PRODUCT((F13+G13+H13)/E13) -> 1.63 | O13: =PRODUCT(I13/E13) -> 4.19
